[Event "Titled Tuesday Blitz May 30 Late 2023"]
[White "Thomforde-Toates, Noah"]
[Black "Babazada, Khazar"]
[WhiteFideId "30951992"]
[BlackFideId "13413554"]
[WhiteElo "2751"]
[BlackElo "2351"]
[Result "1-0"]
[Round "07"]
[TimeControl "180+2"]
[Date "2023.05.31"]
[WhiteClock "0:00:05"]
[BlackClock "0:00:03"]

1. d4 {[%clk 0:02:58]}  Nf6 {[%clk 0:02:52]} 2. Nc3 {[%clk 0:02:58]}  g6 {[%clk 0:02:53]} 3. Bf4 {[%clk 0:02:57]}  d5 {[%clk 0:02:53]} 4. e3 {[%clk 0:02:57]}  Bg7 {[%clk 0:02:53]} 5. h4 {[%clk 0:02:58]}  O-O {[%clk 0:02:52]} 6. h5 {[%clk 0:02:58]}  Nc6 {[%clk 0:02:44]} 7. hxg6 {[%clk 0:02:57]}  hxg6 {[%clk 0:02:42]} 8. Nf3 {[%clk 0:02:55]}  Bg4 {[%clk 0:02:36]} 9. Be2 {[%clk 0:02:52]}  Nh5 {[%clk 0:02:33]} 10. Ne5 {[%clk 0:02:44]}  Bxe2 {[%clk 0:02:22]} 11. Qxe2 {[%clk 0:02:42]}  Nxf4 {[%clk 0:02:23]} 12. exf4 {[%clk 0:02:43]}  Nxd4 {[%clk 0:02:23]} 13. Qd3 {[%clk 0:02:41]}  c5 {[%clk 0:02:18]} 14. Qh3 {[%clk 0:02:38]}  Re8 {[%clk 0:02:19]} 15. O-O-O {[%clk 0:02:37]}  Qd6 {[%clk 0:02:07]} 16. Rde1 {[%clk 0:02:17]}  b5 {[%clk 0:01:47]} 17. Nd7 {[%clk 0:02:14]}  f6 {[%clk 0:01:44]} 18. g3 {[%clk 0:00:51]}  Rad8 {[%clk 0:01:35]} 19. Qh7+ {[%clk 0:00:49]}  Kf7 {[%clk 0:01:35]} 20. Rh6 {[%clk 0:00:47]}  Qxd7 {[%clk 0:00:30]} 21. Qxg6+ {[%clk 0:00:40]}  Kf8 {[%clk 0:00:30]} 22. Rh7 {[%clk 0:00:39]}  e5 {[%clk 0:00:28]} 23. Reh1 {[%clk 0:00:15]}  exf4 {[%clk 0:00:28]} 24. Rh8+ {[%clk 0:00:13]}  Ke7 {[%clk 0:00:29]} 25. Qxg7+ {[%clk 0:00:13]}  Kd6 {[%clk 0:00:29]} 26. Qxd7+ {[%clk 0:00:13]}  Kxd7 {[%clk 0:00:29]} 27. R1h7+ {[%clk 0:00:13]}  Kc6 {[%clk 0:00:26]} 28. Rxe8 {[%clk 0:00:13]}  Rxe8 {[%clk 0:00:27]} 29. gxf4 {[%clk 0:00:13]}  b4 {[%clk 0:00:28]} 30. Nd1 {[%clk 0:00:12]}  Re2 {[%clk 0:00:28]} 31. Ne3 {[%clk 0:00:13]}  Rxf2 {[%clk 0:00:29]} 32. Rh6 {[%clk 0:00:12]}  Re2 {[%clk 0:00:24]} 33. Rxf6+ {[%clk 0:00:12]}  Kb5 {[%clk 0:00:23]} 34. Nxd5 {[%clk 0:00:13]}  Rxc2+ {[%clk 0:00:24]} 35. Kb1 {[%clk 0:00:13]}  Rf2 {[%clk 0:00:23]} 36. b3 {[%clk 0:00:13]}  c4 {[%clk 0:00:20]} 37. Nc7+ {[%clk 0:00:09]}  Kc5 {[%clk 0:00:20]} 38. Na6+ {[%clk 0:00:09]}  Kd5 {[%clk 0:00:20]} 39. Nxb4+ {[%clk 0:00:09]}  Ke4 {[%clk 0:00:21]} 40. bxc4 {[%clk 0:00:09]}  Ne2 {[%clk 0:00:19]} 41. Re6+ {[%clk 0:00:09]}  Kd4 {[%clk 0:00:19]} 42. Nc2+ {[%clk 0:00:08]}  Kd3 {[%clk 0:00:16]} 43. Re3+ {[%clk 0:00:07]}  Kd2 {[%clk 0:00:17]} 44. Kb2 {[%clk 0:00:05]}  Nc1 {[%clk 0:00:17]} 45. Re8 {[%clk 0:00:04]}  Nd3+ {[%clk 0:00:10]} 46. Kb3 {[%clk 0:00:05]}  Rf1 {[%clk 0:00:11]} 47. Na3 {[%clk 0:00:03]}  Rxf4 {[%clk 0:00:07]} 48. Rd8 {[%clk 0:00:03]}  Rf3 {[%clk 0:00:06]} 49. c5 {[%clk 0:00:04]}  Ke3 {[%clk 0:00:04]} 50. Nc4+ {[%clk 0:00:03]}  Ke4 {[%clk 0:00:04]} 51. Nd2+ {[%clk 0:00:04]}  Ke3 {[%clk 0:00:03]} 52. Nxf3 {[%clk 0:00:04]}  Nxc5+ {[%clk 0:00:03]} 53. Kc4 {[%clk 0:00:05]}  Nb7 {[%clk 0:00:03]} 54. Rd7 {[%clk 0:00:05]} 1-0


[Site "https://www.chess.com"]

[Event "Titled Tuesday Blitz May 30 Late 2023"]
[White "Eugene, Floryan"]
[Black "Bok, Benjamin"]
[WhiteFideId "20694784"]
[BlackFideId "1017063"]
[WhiteElo "2369"]
[BlackElo "2657"]
[Result "1/2-1/2"]
[Round "07"]
[TimeControl "180+2"]
[Date "2023.05.31"]
[WhiteClock "0:00:10"]
[BlackClock "0:00:03"]

1. b3 {[%clk 0:03:00]}  d5 {[%clk 0:02:59]} 2. Bb2 {[%clk 0:03:00]}  Bf5 {[%clk 0:02:59]} 3. e3 {[%clk 0:03:00]}  e6 {[%clk 0:02:59]} 4. Nf3 {[%clk 0:02:59]}  h6 {[%clk 0:03:00]} 5. d3 {[%clk 0:02:53]}  Nf6 {[%clk 0:03:00]} 6. Be2 {[%clk 0:02:48]}  Bh7 {[%clk 0:02:58]} 7. O-O {[%clk 0:02:48]}  Nbd7 {[%clk 0:02:57]} 8. Nbd2 {[%clk 0:02:47]}  Bd6 {[%clk 0:02:57]} 9. c4 {[%clk 0:02:46]}  c6 {[%clk 0:02:57]} 10. h3 {[%clk 0:02:44]}  O-O {[%clk 0:02:57]} 11. Re1 {[%clk 0:02:43]}  Qe7 {[%clk 0:02:57]} 12. Bf1 {[%clk 0:02:42]}  e5 {[%clk 0:02:58]} 13. a3 {[%clk 0:02:35]}  a5 {[%clk 0:02:57]} 14. Rc1 {[%clk 0:02:33]}  Rfe8 {[%clk 0:02:56]} 15. cxd5 {[%clk 0:02:24]}  cxd5 {[%clk 0:02:55]} 16. Nb1 {[%clk 0:02:20]}  Rac8 {[%clk 0:02:46]} 17. Qd2 {[%clk 0:02:19]}  b6 {[%clk 0:02:46]} 18. Rxc8 {[%clk 0:02:14]}  Rxc8 {[%clk 0:02:47]} 19. Rc1 {[%clk 0:02:14]}  Rxc1 {[%clk 0:02:30]} 20. Qxc1 {[%clk 0:02:15]}  Nc5 {[%clk 0:02:30]} 21. Qc3 {[%clk 0:02:11]}  Nfd7 {[%clk 0:02:03]} 22. Nbd2 {[%clk 0:02:01]}  Ne6 {[%clk 0:01:49]} 23. Qc6 {[%clk 0:01:49]}  Nc7 {[%clk 0:01:36]} 24. e4 {[%clk 0:01:41]}  dxe4 {[%clk 0:01:23]} 25. Nxe4 {[%clk 0:01:39]}  Bxe4 {[%clk 0:01:18]} 26. dxe4 {[%clk 0:01:40]}  Ne6 {[%clk 0:01:17]} 27. Bb5 {[%clk 0:01:36]}  Nf6 {[%clk 0:01:12]} 28. Nxe5 {[%clk 0:01:27]}  Bxa3 {[%clk 0:01:02]} 29. Qc8+ {[%clk 0:01:23]}  Qf8 {[%clk 0:00:45]} 30. Qxf8+ {[%clk 0:01:22]}  Bxf8 {[%clk 0:00:46]} 31. Nc4 {[%clk 0:01:16]}  Nxe4 {[%clk 0:00:29]} 32. Nxb6 {[%clk 0:01:12]}  Bc5 {[%clk 0:00:29]} 33. Nc4 {[%clk 0:01:09]}  Bxf2+ {[%clk 0:00:29]} 34. Kf1 {[%clk 0:01:06]}  Bd4 {[%clk 0:00:19]} 35. Bxd4 {[%clk 0:00:55]}  Nxd4 {[%clk 0:00:20]} 36. Ba4 {[%clk 0:00:55]}  Nc5 {[%clk 0:00:17]} 37. Nxa5 {[%clk 0:00:55]}  g5 {[%clk 0:00:17]} 38. Kf2 {[%clk 0:00:50]}  Kg7 {[%clk 0:00:15]} 39. Ke3 {[%clk 0:00:50]}  Nf5+ {[%clk 0:00:13]} 40. Ke2 {[%clk 0:00:47]}  h5 {[%clk 0:00:11]} 41. Nc6 {[%clk 0:00:37]}  Kf6 {[%clk 0:00:07]} 42. g4 {[%clk 0:00:35]}  hxg4 {[%clk 0:00:05]} 43. hxg4 {[%clk 0:00:36]}  Ng7 {[%clk 0:00:03]} 44. Nd4 {[%clk 0:00:35]}  Nge6 {[%clk 0:00:02]} 45. Nf3 {[%clk 0:00:33]}  Nf4+ {[%clk 0:00:02]} 46. Ke3 {[%clk 0:00:32]}  Nd5+ {[%clk 0:00:02]} 47. Kd4 {[%clk 0:00:31]}  Nxa4 {[%clk 0:00:03]} 48. bxa4 {[%clk 0:00:30]}  Nb4 {[%clk 0:00:03]} 49. a5 {[%clk 0:00:28]}  Nc6+ {[%clk 0:00:03]} 50. Kc5 {[%clk 0:00:24]}  Nxa5 {[%clk 0:00:04]} 51. Nd4 {[%clk 0:00:22]}  Nb7+ {[%clk 0:00:04]} 52. Kc6 {[%clk 0:00:22]}  Nd8+ {[%clk 0:00:04]} 53. Kd5 {[%clk 0:00:22]}  Ne6 {[%clk 0:00:05]} 54. Nf3 {[%clk 0:00:20]}  Nf4+ {[%clk 0:00:06]} 55. Ke4 {[%clk 0:00:21]}  Ng6 {[%clk 0:00:07]} 56. Nd4 {[%clk 0:00:17]}  Ne7 {[%clk 0:00:07]} 57. Nb3 {[%clk 0:00:12]}  Ng8 {[%clk 0:00:06]} 58. Nc5 {[%clk 0:00:11]}  Kg6 {[%clk 0:00:06]} 59. Kf3 {[%clk 0:00:10]}  f6 {[%clk 0:00:06]} 60. Ke4 {[%clk 0:00:09]}  Nh6 {[%clk 0:00:06]} 61. Kf3 {[%clk 0:00:09]}  Nf7 {[%clk 0:00:07]} 62. Kg3 {[%clk 0:00:08]}  Ne5 {[%clk 0:00:07]} 63. Ne4 {[%clk 0:00:08]}  Kf7 {[%clk 0:00:07]} 64. Nd6+ {[%clk 0:00:07]}  Ke6 {[%clk 0:00:08]} 65. Nf5 {[%clk 0:00:08]}  Kd5 {[%clk 0:00:08]} 66. Nh6 {[%clk 0:00:08]}  Nd7 {[%clk 0:00:06]} 67. Kf3 {[%clk 0:00:08]}  Kd4 {[%clk 0:00:06]} 68. Ng8 {[%clk 0:00:08]}  Ke5 {[%clk 0:00:06]} 69. Nh6 {[%clk 0:00:08]}  Kd5 {[%clk 0:00:05]} 70. Ng8 {[%clk 0:00:08]}  Kd4 {[%clk 0:00:06]} 71. Nh6 {[%clk 0:00:08]}  Ne5+ {[%clk 0:00:06]} 72. Kg3 {[%clk 0:00:08]}  Ke4 {[%clk 0:00:06]} 73. Ng8 {[%clk 0:00:08]}  Nd7 {[%clk 0:00:07]} 74. Nh6 {[%clk 0:00:08]}  Kd3 {[%clk 0:00:06]} 75. Ng8 {[%clk 0:00:08]}  Ke3 {[%clk 0:00:06]} 76. Nh6 {[%clk 0:00:09]}  Nc5 {[%clk 0:00:06]} 77. Nf5+ {[%clk 0:00:08]}  Ke2 {[%clk 0:00:07]} 78. Nd4+ {[%clk 0:00:08]}  Kd3 {[%clk 0:00:07]} 79. Nf5 {[%clk 0:00:06]}  Ke4 {[%clk 0:00:06]} 80. Nd6+ {[%clk 0:00:06]}  Ke5 {[%clk 0:00:04]} 81. Nf7+ {[%clk 0:00:06]}  Ke4 {[%clk 0:00:03]} 82. Nd6+ {[%clk 0:00:06]}  Ke3 {[%clk 0:00:04]} 83. Nf5+ {[%clk 0:00:06]}  Kd3 {[%clk 0:00:04]} 84. Kf3 {[%clk 0:00:06]}  Ne6 {[%clk 0:00:04]} 85. Nh6 {[%clk 0:00:06]}  Nd4+ {[%clk 0:00:05]} 86. Kg3 {[%clk 0:00:06]}  Ke4 {[%clk 0:00:06]} 87. Ng8 {[%clk 0:00:06]}  Ke5 {[%clk 0:00:06]} 88. Nh6 {[%clk 0:00:06]}  Ke6 {[%clk 0:00:06]} 89. Kf2 {[%clk 0:00:06]}  Nc6 {[%clk 0:00:05]} 90. Ke3 {[%clk 0:00:06]}  Ne5 {[%clk 0:00:05]} 91. Kf2 {[%clk 0:00:07]}  Nd7 {[%clk 0:00:04]} 92. Kg3 {[%clk 0:00:07]}  Nb6 {[%clk 0:00:04]} 93. Nf5 {[%clk 0:00:08]}  Nd5 {[%clk 0:00:04]} 94. Nd4+ {[%clk 0:00:08]}  Ke5 {[%clk 0:00:04]} 95. Nf5 {[%clk 0:00:08]}  Ke4 {[%clk 0:00:05]} 96. Nd6+ {[%clk 0:00:08]}  Kd4 {[%clk 0:00:04]} 97. Ne8 {[%clk 0:00:08]}  Ke3 {[%clk 0:00:02]} 98. Ng7 {[%clk 0:00:08]}  Nc3 {[%clk 0:00:02]} 99. Nf5+ {[%clk 0:00:09]}  Ke2 {[%clk 0:00:02]} 100. Nd4+ {[%clk 0:00:09]}  Kd3 {[%clk 0:00:03]} 101. Nf5 {[%clk 0:00:10]}  Ke4 {[%clk 0:00:03]} 102. Nd6+ {[%clk 0:00:10]}  Ke5 {[%clk 0:00:03]} 103. Nf5 {[%clk 0:00:09]}  Ne4+ {[%clk 0:00:02]} 104. Kf3 {[%clk 0:00:09]}  Nd6 {[%clk 0:00:03]} 105. Nh6 {[%clk 0:00:09]}  Nb5 {[%clk 0:00:02]} 106. Kg3 {[%clk 0:00:10]}  Nd4 {[%clk 0:00:02]} 107. Ng8 {[%clk 0:00:09]}  Ne6 {[%clk 0:00:02]} 108. Kf3 {[%clk 0:00:09]}  Nc5 {[%clk 0:00:03]} 109. Kg3 {[%clk 0:00:10]}  Nb3 {[%clk 0:00:03]} 1/2-1/2


[Site "https://www.chess.com"]

[Event "Titled Tuesday Blitz May 30 Late 2023"]
[White "Bayo Milagro, Alvaro"]
[Black "Svane, Rasmus"]
[WhiteFideId "22275240"]
[BlackFideId "4657101"]
[WhiteElo "2270"]
[BlackElo "2601"]
[Result "1-0"]
[Round "07"]
[TimeControl "180+2"]
[Date "2023.05.31"]
[WhiteClock "0:00:08"]
[BlackClock "0:00:13"]

1. Nf3 {[%clk 0:03:00]}  d5 {[%clk 0:02:59]} 2. c4 {[%clk 0:03:01]}  e6 {[%clk 0:02:59]} 3. d4 {[%clk 0:02:58]}  a6 {[%clk 0:02:58]} 4. Bg5 {[%clk 0:02:57]}  Be7 {[%clk 0:02:58]} 5. Bxe7 {[%clk 0:02:57]}  Nxe7 {[%clk 0:02:58]} 6. Nbd2 {[%clk 0:02:55]}  O-O {[%clk 0:02:59]} 7. g3 {[%clk 0:02:56]}  dxc4 {[%clk 0:02:58]} 8. Nxc4 {[%clk 0:02:55]}  b5 {[%clk 0:02:59]} 9. Ncd2 {[%clk 0:02:50]}  Bb7 {[%clk 0:02:58]} 10. Bg2 {[%clk 0:02:51]}  Nd7 {[%clk 0:02:54]} 11. Rc1 {[%clk 0:02:48]}  Rc8 {[%clk 0:02:54]} 12. Nb3 {[%clk 0:02:47]}  Bd5 {[%clk 0:02:49]} 13. O-O {[%clk 0:02:44]}  Bxb3 {[%clk 0:02:45]} 14. Qxb3 {[%clk 0:02:45]}  c5 {[%clk 0:02:46]} 15. dxc5 {[%clk 0:02:45]}  Nxc5 {[%clk 0:02:46]} 16. Qa3 {[%clk 0:02:38]}  Qb6 {[%clk 0:02:45]} 17. Rfd1 {[%clk 0:02:23]}  Nd5 {[%clk 0:02:42]} 18. b4 {[%clk 0:02:03]}  Ne4 {[%clk 0:02:38]} 19. e3 {[%clk 0:02:00]}  Rxc1 {[%clk 0:01:47]} 20. Rxc1 {[%clk 0:01:52]}  Qd6 {[%clk 0:01:47]} 21. Nd4 {[%clk 0:01:47]}  Nd2 {[%clk 0:01:47]} 22. Bxd5 {[%clk 0:00:47]}  Qxd5 {[%clk 0:01:44]} 23. Qxa6 {[%clk 0:00:47]}  h6 {[%clk 0:00:28]} 24. Qxb5 {[%clk 0:00:45]}  Qxa2 {[%clk 0:00:29]} 25. Qe2 {[%clk 0:00:43]}  Qb2 {[%clk 0:00:18]} 26. Rd1 {[%clk 0:00:25]}  e5 {[%clk 0:00:08]} 27. Rxd2 {[%clk 0:00:23]}  Qxb4 {[%clk 0:00:07]} 28. Nf3 {[%clk 0:00:18]}  f6 {[%clk 0:00:04]} 29. Kg2 {[%clk 0:00:15]}  Qe4 {[%clk 0:00:05]} 30. Qd3 {[%clk 0:00:12]}  Qg4 {[%clk 0:00:05]} 31. Qd5+ {[%clk 0:00:11]}  Kh8 {[%clk 0:00:04]} 32. Nh4 {[%clk 0:00:09]}  Kh7 {[%clk 0:00:01]} 33. Qf3 {[%clk 0:00:08]}  Qg5 {[%clk 0:00:01]} 34. Qf5+ {[%clk 0:00:08]}  Qxf5 {[%clk 0:00:02]} 35. Nxf5 {[%clk 0:00:09]}  Rf7 {[%clk 0:00:03]} 36. g4 {[%clk 0:00:08]}  g6 {[%clk 0:00:03]} 37. Ng3 {[%clk 0:00:08]}  Kg7 {[%clk 0:00:03]} 38. Rd6 {[%clk 0:00:09]}  Re7 {[%clk 0:00:03]} 39. h4 {[%clk 0:00:08]}  Rf7 {[%clk 0:00:02]} 40. h5 {[%clk 0:00:08]}  g5 {[%clk 0:00:02]} 41. Nf5+ {[%clk 0:00:08]}  Kh7 {[%clk 0:00:03]} 42. Re6 {[%clk 0:00:09]}  Rf8 {[%clk 0:00:02]} 43. Re7+ {[%clk 0:00:08]}  Kg8 {[%clk 0:00:03]} 44. Nxh6+ {[%clk 0:00:09]}  Kh8 {[%clk 0:00:04]} 45. Nf5 {[%clk 0:00:09]}  Rg8 {[%clk 0:00:02]} 46. Nd6 {[%clk 0:00:07]}  Rf8 {[%clk 0:00:02]} 47. Re8 {[%clk 0:00:08]}  Kg7 {[%clk 0:00:02]} 48. Rxf8 {[%clk 0:00:08]}  f5 {[%clk 0:00:02]} 49. Nxf5+ {[%clk 0:00:08]}  Kh7 {[%clk 0:00:02]} 50. Rf6 {[%clk 0:00:06]}  e4 {[%clk 0:00:03]} 51. Rh6+ {[%clk 0:00:06]}  Kg8 {[%clk 0:00:04]} 52. Ra6 {[%clk 0:00:06]}  Kf7 {[%clk 0:00:05]} 53. h6 {[%clk 0:00:06]}  Kg8 {[%clk 0:00:05]} 54. Ra7 {[%clk 0:00:06]}  Kh8 {[%clk 0:00:06]} 55. Kf1 {[%clk 0:00:04]}  Kg8 {[%clk 0:00:06]} 56. Ke2 {[%clk 0:00:05]}  Kh8 {[%clk 0:00:07]} 57. f3 {[%clk 0:00:05]}  Kg8 {[%clk 0:00:08]} 58. fxe4 {[%clk 0:00:06]}  Kh8 {[%clk 0:00:09]} 59. e5 {[%clk 0:00:06]}  Kg8 {[%clk 0:00:10]} 60. e6 {[%clk 0:00:07]}  Kh8 {[%clk 0:00:11]} 61. Rf7 {[%clk 0:00:07]}  Kg8 {[%clk 0:00:12]} 62. Kf3 {[%clk 0:00:07]}  Kh8 {[%clk 0:00:12]} 63. e7 {[%clk 0:00:07]}  Kg8 {[%clk 0:00:13]} 64. e8=Q# {[%clk 0:00:08]} 1-0


[Site "https://www.chess.com"]

[Event "Titled Tuesday Blitz May 30 Late 2023"]
[White "Papasimakopoulos, Alexandros"]
[Black "Saveliev, Alexei"]
[WhiteFideId "4244125"]
[BlackFideId "24128546"]
[WhiteElo "2359"]
[BlackElo "2271"]
[Result "0-1"]
[Round "07"]
[TimeControl "180+2"]
[Date "2023.05.31"]
[WhiteClock "0:00:11"]
[BlackClock "0:00:07"]

1. d4 {[%clk 0:02:55]}  g6 {[%clk 0:02:59]} 2. c4 {[%clk 0:02:50]}  Bg7 {[%clk 0:03:00]} 3. e4 {[%clk 0:02:49]}  d6 {[%clk 0:03:00]} 4. Nc3 {[%clk 0:02:49]}  Nc6 {[%clk 0:03:00]} 5. Nge2 {[%clk 0:02:49]}  e5 {[%clk 0:03:00]} 6. Be3 {[%clk 0:02:49]}  f5 {[%clk 0:03:00]} 7. d5 {[%clk 0:02:47]}  Nce7 {[%clk 0:03:00]} 8. f3 {[%clk 0:02:48]}  Nf6 {[%clk 0:03:00]} 9. h3 {[%clk 0:02:47]}  O-O {[%clk 0:03:01]} 10. g4 {[%clk 0:02:42]}  c6 {[%clk 0:02:56]} 11. g5 {[%clk 0:02:39]}  Nh5 {[%clk 0:02:56]} 12. Qd2 {[%clk 0:02:38]}  cxd5 {[%clk 0:02:51]} 13. cxd5 {[%clk 0:02:34]}  Bd7 {[%clk 0:02:31]} 14. O-O-O {[%clk 0:02:19]}  b5 {[%clk 0:02:29]} 15. b4 {[%clk 0:01:51]}  a5 {[%clk 0:02:28]} 16. a3 {[%clk 0:01:52]}  Qc8 {[%clk 0:02:23]} 17. Kb1 {[%clk 0:01:43]}  Qa6 {[%clk 0:02:19]} 18. Qb2 {[%clk 0:01:42]}  Rfc8 {[%clk 0:02:13]} 19. Nc1 {[%clk 0:01:37]}  axb4 {[%clk 0:02:07]} 20. axb4 {[%clk 0:01:37]}  Rxc3 {[%clk 0:01:54]} 21. Qxc3 {[%clk 0:01:29]}  fxe4 {[%clk 0:01:55]} 22. fxe4 {[%clk 0:01:27]}  Ng3 {[%clk 0:01:55]} 23. Bg2 {[%clk 0:01:06]}  Nxh1 {[%clk 0:01:41]} 24. Bxh1 {[%clk 0:01:05]}  Nf5 {[%clk 0:01:28]} 25. Rd2 {[%clk 0:00:54]}  Nxe3 {[%clk 0:01:08]} 26. Ra2 {[%clk 0:00:54]}  Nxd5 {[%clk 0:00:44]} 27. exd5 {[%clk 0:00:23]}  Qb7 {[%clk 0:00:35]} 28. Rxa8+ {[%clk 0:00:22]}  Qxa8 {[%clk 0:00:35]} 29. Be4 {[%clk 0:00:22]}  h6 {[%clk 0:00:22]} 30. h4 {[%clk 0:00:20]}  hxg5 {[%clk 0:00:21]} 31. hxg5 {[%clk 0:00:21]}  Qd8 {[%clk 0:00:21]} 32. Qe3 {[%clk 0:00:22]}  Bf5 {[%clk 0:00:18]} 33. Ne2 {[%clk 0:00:22]}  Bxe4+ {[%clk 0:00:17]} 34. Qxe4 {[%clk 0:00:23]}  Qxg5 {[%clk 0:00:17]} 35. Nc3 {[%clk 0:00:23]}  Qd2 {[%clk 0:00:18]} 36. Nxb5 {[%clk 0:00:20]}  g5 {[%clk 0:00:17]} 37. Nxd6 {[%clk 0:00:19]}  g4 {[%clk 0:00:15]} 38. Nf5 {[%clk 0:00:20]}  Qd1+ {[%clk 0:00:08]} 39. Kb2 {[%clk 0:00:20]}  Bf6 {[%clk 0:00:09]} 40. d6 {[%clk 0:00:20]}  Kf7 {[%clk 0:00:06]} 41. Qxg4 {[%clk 0:00:15]}  e4+ {[%clk 0:00:06]} 42. Ka2 {[%clk 0:00:10]}  Qc2+ {[%clk 0:00:04]} 43. Ka3 {[%clk 0:00:11]}  Bb2+ {[%clk 0:00:04]} 44. Ka2 {[%clk 0:00:11]}  Bc3+ {[%clk 0:00:05]} 45. Ka3 {[%clk 0:00:11]}  Qb2+ {[%clk 0:00:06]} 46. Ka4 {[%clk 0:00:11]}  Qxb4# {[%clk 0:00:07]} 0-1


[Site "https://www.chess.com"]

[Event "Titled Tuesday Blitz May 30 Late 2023"]
[White "brm72"]
[Black "Matinian, Nikita"]
[BlackFideId "24129100"]
[WhiteElo "2598"]
[BlackElo "2422"]
[Result "0-1"]
[Round "07"]
[TimeControl "180+2"]
[Date "2023.05.31"]
[WhiteClock "0:00:07"]
[BlackClock "0:00:41"]

1. e4 {[%clk 0:03:00]}  d6 {[%clk 0:02:54]} 2. d4 {[%clk 0:02:53]}  g6 {[%clk 0:02:53]} 3. Nc3 {[%clk 0:02:54]}  Bg7 {[%clk 0:02:53]} 4. Nf3 {[%clk 0:02:51]}  Nf6 {[%clk 0:02:51]} 5. Be3 {[%clk 0:02:47]}  Nc6 {[%clk 0:02:50]} 6. Qd2 {[%clk 0:02:45]}  Bg4 {[%clk 0:02:46]} 7. O-O-O {[%clk 0:02:43]}  O-O {[%clk 0:02:42]} 8. Bh6 {[%clk 0:02:40]}  Bxf3 {[%clk 0:02:35]} 9. gxf3 {[%clk 0:02:39]}  e5 {[%clk 0:02:35]} 10. d5 {[%clk 0:02:28]}  Nd4 {[%clk 0:02:33]} 11. Be2 {[%clk 0:02:28]}  c6 {[%clk 0:02:30]} 12. h4 {[%clk 0:02:21]}  cxd5 {[%clk 0:02:28]} 13. exd5 {[%clk 0:02:20]}  Qa5 {[%clk 0:02:25]} 14. Kb1 {[%clk 0:02:07]}  Bxh6 {[%clk 0:02:24]} 15. Qxh6 {[%clk 0:02:06]}  Rac8 {[%clk 0:02:23]} 16. Bd3 {[%clk 0:02:00]}  Rxc3 {[%clk 0:02:12]} 17. bxc3 {[%clk 0:02:01]}  Nxd5 {[%clk 0:01:36]} 18. cxd4 {[%clk 0:01:33]}  Qa3 {[%clk 0:01:35]} 19. Bc4 {[%clk 0:01:21]}  Nc3+ {[%clk 0:01:35]} 20. Ka1 {[%clk 0:01:19]}  Nxd1 {[%clk 0:01:19]} 21. Rxd1 {[%clk 0:01:10]}  Qc3+ {[%clk 0:01:16]} 22. Kb1 {[%clk 0:01:10]}  Qxc4 {[%clk 0:01:16]} 23. dxe5 {[%clk 0:01:10]}  Qb4+ {[%clk 0:01:10]} 24. Ka1 {[%clk 0:01:08]}  Qc3+ {[%clk 0:01:09]} 25. Kb1 {[%clk 0:01:08]}  dxe5 {[%clk 0:01:02]} 26. h5 {[%clk 0:01:05]}  Qxf3 {[%clk 0:00:58]} 27. Rd7 {[%clk 0:00:45]}  Qxh5 {[%clk 0:00:55]} 28. Qxh5 {[%clk 0:00:45]}  gxh5 {[%clk 0:00:56]} 29. Rxb7 {[%clk 0:00:46]}  f5 {[%clk 0:00:51]} 30. Rxa7 {[%clk 0:00:45]}  h4 {[%clk 0:00:52]} 31. Ra3 {[%clk 0:00:44]}  Rf6 {[%clk 0:00:49]} 32. Rh3 {[%clk 0:00:44]}  Rh6 {[%clk 0:00:49]} 33. a4 {[%clk 0:00:44]}  Kg7 {[%clk 0:00:48]} 34. a5 {[%clk 0:00:45]}  Kg6 {[%clk 0:00:49]} 35. a6 {[%clk 0:00:45]}  Kg5 {[%clk 0:00:49]} 36. Ra3 {[%clk 0:00:45]}  h3 {[%clk 0:00:45]} 37. a7 {[%clk 0:00:44]}  h2 {[%clk 0:00:45]} 38. a8=Q {[%clk 0:00:41]}  h1=Q+ {[%clk 0:00:45]} 39. Qxh1 {[%clk 0:00:38]}  Rxh1+ {[%clk 0:00:46]} 40. Kb2 {[%clk 0:00:38]}  Rf1 {[%clk 0:00:44]} 41. f3 {[%clk 0:00:29]}  Kf4 {[%clk 0:00:42]} 42. c4 {[%clk 0:00:24]}  Rf2+ {[%clk 0:00:42]} 43. Kc1 {[%clk 0:00:24]}  Rxf3 {[%clk 0:00:39]} 44. Rxf3+ {[%clk 0:00:23]}  Kxf3 {[%clk 0:00:40]} 45. c5 {[%clk 0:00:23]}  e4 {[%clk 0:00:41]} 46. c6 {[%clk 0:00:20]}  e3 {[%clk 0:00:41]} 47. c7 {[%clk 0:00:21]}  e2 {[%clk 0:00:41]} 48. c8=Q {[%clk 0:00:17]}  e1=Q+ {[%clk 0:00:41]} 49. Kc2 {[%clk 0:00:17]}  Qe4+ {[%clk 0:00:41]} 50. Kc1 {[%clk 0:00:17]}  h5 {[%clk 0:00:42]} 51. Qh8 {[%clk 0:00:13]}  h4 {[%clk 0:00:41]} 52. Qf6 {[%clk 0:00:11]}  h3 {[%clk 0:00:40]} 53. Qg6 {[%clk 0:00:09]}  h2 {[%clk 0:00:39]} 54. Qh5+ {[%clk 0:00:09]}  Qg4 {[%clk 0:00:37]} 55. Qxh2 {[%clk 0:00:04]}  Qf4+ {[%clk 0:00:38]} 56. Qxf4+ {[%clk 0:00:04]}  Kxf4 {[%clk 0:00:38]} 57. Kd1 {[%clk 0:00:04]}  Kf3 {[%clk 0:00:38]} 58. Ke1 {[%clk 0:00:05]}  Kg2 {[%clk 0:00:38]} 59. Ke2 {[%clk 0:00:06]}  f4 {[%clk 0:00:38]} 60. Ke1 {[%clk 0:00:06]}  f3 {[%clk 0:00:39]} 61. Kd2 {[%clk 0:00:06]}  f2 {[%clk 0:00:40]} 62. Ke2 {[%clk 0:00:07]}  f1=Q+ {[%clk 0:00:41]} 0-1


[Site "https://www.chess.com"]